Cogmind - Beta 14 @@@ ROGUE MODE // 2025.03.11 @ 18:36:30 Player: morimori Result: Destroyed by S-27 Virus with Autogun Performance ------------- Evolutions (4) 2000 Regions Visited (8) 1600 Robots Destroyed (48) 240 Value Destroyed (802) 802 Prototype IDs (4) 80 Alien Tech Used (0) 0 Bonus (-469) -469 TOTAL SCORE: 4253 Bonus ------- Friendly Fire -469 Cogmind --------- Core Integrity 0/850 Matter 165/300 Energy 100/100 System Corruption 0% Temperature Cool (0) Movement Core (50) Location -6/Factory Parts ------- > --- POWER (1) -------- (None) > --- PROPULSION (6) --- (None) > --- UTILITY (6) ------ Improved Targeting Computer > --- WEAPON (2) ------- (None) > --- INVENTORY (5) ---- Improved Sensor Array Heart of Steel Proton Missile Launcher Peak State ------------ > --- POWER ------------ (None) > --- PROPULSION ------- Improved Gravmag System Xenon Bombardment Thruster > --- UTILITY ---------- Improved Targeting Computer Advanced Melee Analysis Suite Heart of Steel > --- WEAPON ----------- Heavy Laser Makeshift Laser > --- INVENTORY -------- Proton Missile Launcher [Rating: 48] Favorites ----------- Power Ion Engine Engine Ion Engine Propulsion Improved Treads Treads Improved Treads Leg Aluminum Leg Hover Unit Improved Hover Unit Flight Unit Improved Flight Unit Utility Small Storage Unit Device Field Recycling Unit Storage Small Storage Unit Processor Improved Targeting Computer Hackware System Shield Protection Light Armor Plating Weapon Small Laser Energy Gun Small Laser Launcher EMP Blaster Slashing Weapon Scythe Build | -11 -10 -9 -9 -8 -7 -7 -7 -6 ------- Run | Yrd Mat Mat Sto Mat Fac Low Low Fac Slots Evolved 8 | . . 2 . 2 2 . . 2 Power . | . . . . . . . . . Propulsion 4 | . . 2 . 2 . . . . Utility 4 | . . . . . 2 . . 2 Weapon . | . . . . . . . . . Parts Attached 72 | 6 32 . 7 5 6 6 2 8 Power 8 | 1 6 . 1 . . . . . Engine 8 | 1 6 . 1 . . . . . Core . | . . . . . . . . . Reactor . | . . . . . . . . . Propulsion 27 | 2 12 . 4 5 1 1 . 2 Treads 10 | 2 8 . . . . . . . Leg 3 | . 3 . . . . . . . Wheel . | . . . . . . . . . Hover 8 | . . . . 5 1 1 . 1 Flight 6 | . 1 . 4 . . . . 1 Utility 21 | 1 7 . 1 . 3 4 1 4 Device 12 | . 4 . . . 1 4 1 2 Storage 4 | 1 1 . 1 . 1 . . . Processor 2 | . . . . . . . . 2 Hackware 1 | . . . . . 1 . . . Protection 2 | . 2 . . . . . . . Artifact . | . . . . . . . . . Weapon 16 | 2 7 . 1 . 2 1 1 2 Energy Gun 7 | 2 3 . . . . . 1 1 Energy Cannon . | . . . . . . . . . Ballistic Gun . | . . . . . . . . . Ballistic Cannon . | . . . . . . . . . Launcher 6 | . 4 . 1 . . . . 1 Special Weapon . | . . . . . . . . . Impact Weapon . | . . . . . . . . . Slashing Weapon 3 | . . . . . 2 1 . . Piercing Weapon . | . . . . . . . . . Special Melee Weapon . | . . . . . . . . . Unidentified Prototypes 4 | . . . 1 . 2 1 . . Corrupted Parts 1 | . . . 1 . . . . . System Corruption 5 | . . . 5 . . . . . Parts Lost 25 | . 3 . 6 7 1 3 . 5 Power 3 | . 2 . 1 . . . . . Propulsion 13 | . . . 2 7 . 2 . 2 Utility 1 | . . . . . . . . 1 Weapon 8 | . 1 . 3 . 1 1 . 2 Highest Loss Streak 6 | . 2 . 6 4 1 1 . 5 To Critical Strikes . | . . . . . . . . . Average Slot Usage (%) 60 | . 93 66 71 51 23 20 6 33 Engine 6 | . 13 . 1 . . . . . Treads 9 | . 19 11 1 . . . . . Leg 2 | . 4 11 1 . . . . . Hover 3 | . . . . 27 5 4 . 4 Flight 3 | . . . 32 10 . . . 5 Device 4 | . 8 . . . 4 2 . . Storage 11 | . 17 22 18 13 . 3 . . Processor 1 | . . . . . . . . 9 Energy Gun 10 | . 17 11 7 . . . 5 11 Launcher 5 | . 10 11 8 . . . . . Slashing Weapon 2 | . . . . . 10 8 . . Peak Build Rating 48 | 6 12 9 19 16 19 40 28 48 Average Rating 12 | 5 10 9 14 11 11 16 8 25 On Entrance 6 | . 6 9 9 9 . 19 3 7 Naked Turns 368 | . . . . 38 25 281 24 . Heaviest Build 24 | 12 23 14 17 9 16 24 2 7 Greatest Support 46 | 40 46 3 23 28 8 17 3 6 Greatest Overweight (x) 7 | 3 7 4 2 2 1 3 . 2 Average Overweight (x) . | . . 4 . . . . . . Largest Inventory Capacity 10 | 8 8 8 8 8 10 10 5 5 Average Capacity 7 | 7 8 8 8 7 5 7 5 5 Most Carried 9 | 3 8 8 8 7 5 9 5 5 Average Carried 6 | 2 7 8 7 5 4 6 4 4 Final Capacity 10 | 8 8 8 8 5 10 5 5 5 Final Carried 8 | 3 8 8 7 5 5 5 5 5 Class Distribution -------------------- 93% | Mutant 4% | Gladiator Dominant Class ---------------- Mutant | -10/Materials Mutant | -9/Materials Mutant | -9/Storage Mutant | -8/Materials Gladiator | -7/Factory Mutant | -7/Lower Caves Mutant | -7/Lower Caves Mutant | -6/Factory Resources | -11 -10 -9 -9 -8 -7 -7 -7 -6 ----------- Run | Yrd Mat Mat Sto Mat Fac Low Low Fac Matter Collected 1897 | 260 190 . 133 44 . 813 106 351 Remotely . | . . . . . . . . . Salvage Created 1874 | 223 737 . 288 . . 186 45 395 Parts 102 | 18 47 . 11 . . 9 5 12 Haulers Intercepted . | . . . . . . . . . Recyclers Shooed 4 | . 1 . 2 1 . . . . Parts Field Recycled 8 | . 8 . . . . . . . Retrieved Matter 70 | . 70 . . . . . . . Parts Self-Destructed 3 | . . . . . . 3 . . Prevented . | . . . . . . . . . Kills | -11 -10 -9 -9 -8 -7 -7 -7 -6 ------- Run | Yrd Mat Mat Sto Mat Fac Low Low Fac Combat Hostiles Destroyed 22 | . 14 . 5 . . 1 . 2 Melee 1 | . . . . . . 1 . . Guns 9 | . 9 . . . . . . . AOE 12 | . 5 . 5 . . . . 2 Classes Destroyed 11 | 3 4 . 1 . . 3 . . Worker 9 | 2 5 . . . . . . 2 Builder 3 | . 3 . . . . . . . Tunneler 7 | 6 . . . . . . . 1 Recycler 6 | 1 1 . 2 . . . . 2 Watcher 1 | . 1 . . . . . . . Swarmer 9 | . 3 . 4 . . . . 2 Grunt 11 | . 11 . . . . . . . Sentry 1 | . . . 1 . . . . . Programmer 1 | . . . . . . 1 . . Decomposer 3 | . . . . . . . 3 . Packrat 1 | . . . . . . 1 . . Samaritan 1 | . . . . . . 1 . . Tinkerer 1 | . . . . . . 1 . . Best Kill Streak 6 | 4 6 . 4 . . 1 . 2 Combat Bots Only 3 | . 3 . 3 . . 1 . 2 Max Kills in Single Turn 5 | 1 5 . 2 . . 1 1 2 Gunslinging . | . . . . . . . . . Exploded 2 | . 2 . 2 . . . . 2 Melee 1 | . . . . . . 1 . . Uniques/NPCs Destroyed . | . . . . . . . . . Combat | -11 -10 -9 -9 -8 -7 -7 -7 -6 -------- Run | Yrd Mat Mat Sto Mat Fac Low Low Fac Hostile Shots Fired 387 | . 89 . 99 54 . 52 . 93 Missed 148 | . 24 . 41 26 . 22 . 35 Damage Taken 3441 | . 832 . 615 488 . 372 . 1134 Core 1592 | . 186 . 208 202 . 140 . 856 Absorbed by Shields 158 | . . . 133 . . . . 25 Core Remaining (%) 63 | 100 25 . 48 63 . . 80 . Volleys Fired 119 | 20 72 . 12 . . . 4 11 Largest 2 | 2 2 . 1 . . . 1 2 Hottest 119 | 80 90 . 40 . . . 50 119 Shots Fired 158 | 40 81 . 12 . . . 4 21 Gun 145 | 40 76 . 5 . . . 4 20 Cannon . | . . . . . . . . . Launcher 13 | . 5 . 7 . . . . 1 Special . | . . . . . . . . . Kinetic . | . . . . . . . . . Thermal 145 | 40 76 . 5 . . . 4 20 Explosive . | . . . . . . . . . Electromagnetic 13 | . 5 . 7 . . . . 1 Robot Hit Streak 14 | 8 6 . 6 . . . 10 14 Robot Miss Streak 7 | 3 7 . 1 . . . . 1 Penetration Max . | . . . . . . . . . Secondary Targets . | . . . . . . . . . Shots Hit Robots 115 | 24 51 . 9 . . 9 4 18 Core Hits 75 | 10 38 . 10 1 . 4 3 9 Critical Kills . | . . . . . . . . . Critical Parts Destroyed . | . . . . . . . . . Critical Strikes 7 | . 4 . . . . 1 . 2 Burn 6 | . 4 . . . . . . 2 Sever 1 | . . . . . . 1 . . Melee Attacks 14 | . . . . . . 14 . . Impact . | . . . . . . . . . Slashing 14 | . . . . . . 14 . . Piercing . | . . . . . . . . . Sneak Attacks 3 | . . . . . . 3 . . Combat Hostiles . | . . . . . . . . . Follow-up Attacks . | . . . . . . . . . Damage Inflicted 2474 | 271 931 . 396 3 . 454 67 352 Guns 1334 | 271 655 . 32 . . . 67 309 Cannons . | . . . . . . . . . Explosions 682 | . 275 . 364 . . . . 43 Melee 454 | . . . . . . 454 . . Ramming 4 | . 1 . . 3 . . . . Kinetic . | . . . . . . . . . Thermal 1471 | 271 735 . 89 . . . 67 309 Explosive . | . . . . . . . . . Electromagnetic 545 | . 195 . 307 . . . . 43 Impact . | . . . . . . . . . Slashing 454 | . . . . . . 454 . . Piercing . | . . . . . . . . . Highest Corruption 5 | . . . 5 2 . 1 1 . Average Corruption 1 | . . . 5 2 . 1 1 . Corruption Purged . | . . . . . . . . . Corruption Blocked . | . . . . . . . . . Effects 8 | . . . 2 1 . 4 1 . Message Errors 3 | . . . . 1 . 2 . . Matter Fused 1 | . . . 1 . . . . . Energy Discharges 2 | . . . 1 . . . 1 . Data Loss (minor) 2 | . . . . . . 2 . . Overload Shots . | . . . . . . . . . Overflow Damage 126 | . 13 . 3 . . 110 . . Projectiles . | . . . . . . . . . Explosions 16 | . 13 . 3 . . . . . Melee 110 | . . . . . . 110 . . Knockbacks . | . . . . . . . . . Impact . | . . . . . . . . . Kinetic . | . . . . . . . . . Secondary . | . . . . . . . . . Self-Inflicted Damage 77 | . 58 . 9 1 . . . 9 Shots 7 | . 4 . 2 . . . . 1 Rammed 2 | . 1 . . 1 . . . . Targets Rammed 2 | . 1 . . 1 . . . . Kicked . | . . . . . . . . . Crushed . | . . . . . . . . . Highest Temperature 189 | 90 189 . 8 9 . . 16 59 Average Temperature 51 | 37 63 . 3 9 . . 11 17 Received Heat Transfer 942 | . 423 . 216 153 . 123 . 27 Siege Activations . | . . . . . . . . . Robots Corrupted . | . . . . . . . . . Combat Hostiles . | . . . . . . . . . Parts Fried . | . . . . . . . . . Impact Corruptions . | . . . . . . . . . Robots Melted 1 | . . . . . . . . 1 Combat Hostiles . | . . . . . . . . . Parts Melted 9 | 2 3 . . . . . . 4 Heat Transferred 3845 | 625 2120 . 175 . . . 148 777 Parts Sabotaged . | . . . . . . . . . Parts Stolen . | . . . . . . . . . Parts Stripped . | . . . . . . . . . Power Chain Reactions 3 | . 2 . 1 . . . . . Alert | -11 -10 -9 -9 -8 -7 -7 -7 -6 ------- Run | Yrd Mat Mat Sto Mat Fac Low Low Fac Peak Influence 329 | 45 277 117 329 310 140 . . 295 Initial 140 | . 29 117 49 138 140 . . 63 Average 82 | 19 70 117 124 145 130 . . 102 Maximum Alert Level 1 | . 1 . 1 1 . . . 1 Low Security (%) 88 | 100 86 100 82 83 100 . . 92 Level 1 11 | . 13 . 17 16 . . . 7 Level 2 . | . . . . . . . . . Level 3 . | . . . . . . . . . Level 4 . | . . . . . . . . . Level 5 . | . . . . . . . . . High Security . | . . . . . . . . . Max Security . | . . . . . . . . . Squads Dispatched 11 | . 2 . 4 4 . . . 1 Investigation 5 | . 2 . . 3 . . . . Extermination 1 | . . . . . . . . 1 Reinforcement 4 | . . . 3 1 . . . . Assault . | . . . . . . . . . Garrison 1 | . . . 1 . . . . . Intercept . | . . . . . . . . . Searches Triggered . | . . . . . . . . . Construction Impeded . | . . . . . . . . . Haulers Reinforced . | . . . . . . . . . Active Scanning Responses . | . . . . . . . . . Cargo Convoy Interrupts . | . . . . . . . . . Stealth | -11 -10 -9 -9 -8 -7 -7 -7 -6 --------- Run | Yrd Mat Mat Sto Mat Fac Low Low Fac Distress Signals 5 | . . . 2 3 . . . . Communications Jammed . | . . . . . . . . . Distress Signals . | . . . . . . . . . Times Spotted 102 | . 20 . 27 28 . 11 . 16 Peak Tracking Total 17 | . 4 . 12 17 . 5 . 13 Tactical Retreats 13 | . 1 . 2 5 . 3 . 2 Traps | -11 -10 -9 -9 -8 -7 -7 -7 -6 ------- Run | Yrd Mat Mat Sto Mat Fac Low Low Fac Traps Triggered 10 | . 2 . 6 . . . . 2 Indirectly 2 | . . . 2 . . . . . Trap Hack Attempts . | . . . . . . . . . Triggered . | . . . . . . . . . Disarmed . | . . . . . . . . . Reprogrammed . | . . . . . . . . . Reused . | . . . . . . . . . Traps Extracted . | . . . . . . . . . Installed . | . . . . . . . . . Triggered . | . . . . . . . . . Machines | -11 -10 -9 -9 -8 -7 -7 -7 -6 ---------- Run | Yrd Mat Mat Sto Mat Fac Low Low Fac Machines Disabled 4 | . 1 . 3 . . . . . Max in Single Turn 2 | . 1 . 2 . . . . . Machines Repaired . | . . . . . . . . . Machines Dismantled . | . . . . . . . . . Machines Sabotaged . | . . . . . . . . . Overloaded Fab Kills . | . . . . . . . . . Hacking | -11 -10 -9 -9 -8 -7 -7 -7 -6 --------- Run | Yrd Mat Mat Sto Mat Fac Low Low Fac Machines Accessed 11 | . . . 3 4 . 2 . 2 Terminals 9 | . . . 3 4 . . . 2 Fabricators . | . . . . . . . . . Repair Stations . | . . . . . . . . . Recycling Units . | . . . . . . . . . Scanalyzers . | . . . . . . . . . Garrison Access . | . . . . . . . . . Total Hacks 30 | . . . 6 18 . 2 . 4 Successful 14 | . . . 2 7 . 2 . 3 Failed 16 | . . . 4 11 . . . 1 Catastrophic 10 | . . . 2 8 . . . . Database Lockouts . | . . . . . . . . . Manual 21 | . . . 3 15 . . . 3 Terminals 28 | . . . 6 18 . . . 4 Fabricators . | . . . . . . . . . Repair Stations . | . . . . . . . . . Recycling Units . | . . . . . . . . . Scanalyzers . | . . . . . . . . . Garrison Access . | . . . . . . . . . Terminal Hacks 10 | . . . 1 5 . 2 . 2 Open Door 3 | . . . 1 . . 2 . . Branch Access Points 1 | . . . . . . . . 1 Emergency Access Points 1 | . . . . 1 . . . . Unreport Threat 3 | . . . . 3 . . . . Locate Traps 1 | . . . . . . . . 1 Zone Layout 1 | . . . . 1 . . . . Fabricator Hacks . | . . . . . . . . . Repair Station Hacks . | . . . . . . . . . Recycling Unit Hacks . | . . . . . . . . . Scanalyzer . | . . . . . . . . . Garrison Access Hacks . | . . . . . . . . . Unauthorized Hacks 4 | . . . 1 2 . . . 1 Terminals 4 | . . . 1 2 . . . 1 Botnet 3 | . . . . 2 . . . 1 Disrupt 1 | . . . 1 . . . . . Fabricators . | . . . . . . . . . Repair Stations . | . . . . . . . . . Recycling Units . | . . . . . . . . . Scanalyzers . | . . . . . . . . . Garrison Access . | . . . . . . . . . Data Cores Recovered . | . . . . . . . . . Used . | . . . . . . . . . Hacking Detections 9 | . . . 3 4 . . . 2 Full Trace Events 3 | . . . . 3 . . . . Feedback Events . | . . . . . . . . . Feedback Blocked . | . . . . . . . . . Robot Schematics Acquired . | . . . . . . . . . Robots Built . | . . . . . . . . . Authchips . | . . . . . . . . . Time . | . . . . . . . . . Total Robot Build Rating . | . . . . . . . . . Part Schematics Acquired . | . . . . . . . . . Parts Built . | . . . . . . . . . Authchips . | . . . . . . . . . Time . | . . . . . . . . . Total Part Build Rating . | . . . . . . . . . Parts Repaired . | . . . . . . . . . Time . | . . . . . . . . . Parts Recycled . | . . . . . . . . . Recycled Matter . | . . . . . . . . . Retrieved Matter . | . . . . . . . . . Retrieved Components . | . . . . . . . . . Parts Scanalyzed . | . . . . . . . . . Part Schematics Acquired . | . . . . . . . . . Parts Damaged . | . . . . . . . . . Bothacking | -11 -10 -9 -9 -8 -7 -7 -7 -6 ------------ Run | Yrd Mat Mat Sto Mat Fac Low Low Fac Used RIF Installer . | . . . . . . . . . Robots Hacked . | . . . . . . . . . Non-combat . | . . . . . . . . . Combat . | . . . . . . . . . Robot Hacks Applied . | . . . . . . . . . Relay Couplers Released . | . . . . . . . . . Fabnet Peak Effective % . | . . . . . . . . . Robots Rewired . | . . . . . . . . . Allies Hacked . | . . . . . . . . . Hacks Repelled . | . . . . . . . . . Allies | -11 -10 -9 -9 -8 -7 -7 -7 -6 -------- Run | Yrd Mat Mat Sto Mat Fac Low Low Fac Total Allies . | . . . . . . . . . Largest Group . | . . . . . . . . . Highest-Rated Group . | . . . . . . . . . Highest-Rated Ally . | . . . . . . . . . Total Orders . | . . . . . . . . . Ally Attacks . | . . . . . . . . . Total Damage . | . . . . . . . . . Kills . | . . . . . . . . . Allies Corrupted . | . . . . . . . . . Allies Melted . | . . . . . . . . . Intel | -11 -10 -9 -9 -8 -7 -7 -7 -6 ------- Run | Yrd Mat Mat Sto Mat Fac Low Low Fac Robot Analysis Total . | . . . . . . . . . Derelict Logs Recovered 1 | . . . . . . 1 . . Drone Launches . | . . . . . . . . . Drone Recoveries . | . . . . . . . . . Exploration | -11 -10 -9 -9 -8 -7 -7 -7 -6 ------------- Run | Yrd Mat Mat Sto Mat Fac Low Low Fac Turns Passed 3691 | 273 1585 26 198 221 131 776 111 370 Spaces Moved 3158 | 111 761 10 260 410 215 702 151 538 Core 817 | 13 40 10 . 77 46 417 151 63 Treads 829 | 98 714 . 17 . . . . . Legs 8 | . 7 . 1 . . . . . Wheels . | . . . . . . . . . Hover 723 | . . . . 269 169 285 . . Flight 781 | . . . 242 64 . . . 475 Fastest Speed 31 | 50 160 250 31 40 50 50 50 40 Average Speed 85 | 155 165 250 42 49 53 71 50 41 Slowest Speed 400 | 200 400 250 190 150 110 200 50 50 Overloaded Moves . | . . . . . . . . . Propulsion Burnouts . | . . . . . . . . . Robots Hopped 7 | . . . 4 2 . . . 1 Cave-ins Triggered . | . . . . . . . . . Exploration Rate (%) 25 | 5 31 2 50 35 4 71 15 17 Regions Visited 8 Branch Regions 3 Pre-discovered Areas . | . . . . . . . . . Known Exits Taken . | . . . . . . . . . Unknown Exits Taken 8 | 1 1 1 1 1 1 1 1 . Scrap Searched 2 | . . . . . . 1 1 . Spaces Dug . | . . . . . . . . . Terrain Destroyed 5 | . 3 . 2 . . . . . Melee . | . . . . . . . . . Projectile . | . . . . . . . . . AOE 5 | . 3 . 2 . . . . . Terrain Rammed . | . . . . . . . . . Walls Destroyed . | . . . . . . . . . Machines Disabled . | . . . . . . . . . Actions | -11 -10 -9 -9 -8 -7 -7 -7 -6 --------- Run | Yrd Mat Mat Sto Mat Fac Low Low Fac Total 3976 | 169 1004 12 331 427 229 958 181 665 Wait 485 | 28 108 3 20 9 . 210 24 83 Move 3136 | 110 760 9 251 405 214 701 150 536 Hop 7 | . . . 4 2 . . . 1 Pick Up 27 | 4 7 . 4 3 4 . . 5 Fast Attach 49 | 6 20 . 6 1 7 2 1 6 Attach 14 | . 2 . 1 4 . 4 1 2 Detach 14 | . 3 . . 1 . 7 1 2 Swap 10 | . 10 . . . . . . . Drop 46 | 1 21 . 7 1 4 6 . 6 Fire 119 | 20 72 . 12 . . . 4 11 Melee 14 | . . . . . . 14 . . Ram 1 | . . . . 1 . . . . Kick . | . . . . . . . . . Crush 1 | . 1 . . . . . . . Escape Stasis 39 | . . . 26 . . . . 13 Rewire 14 | . . . . . . 14 . . Trap . | . . . . . . . . . Miscellaneous . | . . . . . . . . . Route ------- -11/Scrapyard -10/Materials -9/Materials -9/Storage -8/Materials -7/Factory -7/Lower Caves -7/Lower Caves -6/Factory (discovered 2 exits: *Low x2) History --------- Turn | Location | Event 13 | -11/Scrapyard | Discovered new exit (range 16) 274 | -11/Scrapyard | Entered Materials 313 | -10/Materials | Build established: Mutant 1356 | -10/Materials | Core integrity fell below 50% 1794 | -10/Materials | Discovered new exit (range 10) 1859 | -10/Materials | Entered another Materials area 1859 | -9/Materials | Evolved 2 slots: Propulsion x2 1862 | -9/Materials | Discovered new exit (range 9) 1885 | -9/Materials | Entered Storage 2023 | -9/Storage | Garrison activated, responded to threat 2078 | -9/Storage | Discovered new exit (range 14) 2081 | -9/Storage | Core integrity fell below 50% 2083 | -9/Storage | Entered Materials 2083 | -8/Materials | Evolved 2 slots: Propulsion x2 2105 | -8/Materials | Lost 6 parts (1p2n3w) 2297 | -8/Materials | Lost 4 parts (4n) 2297 | -8/Materials | Discovered new exit (range 14) 2304 | -8/Materials | Entered Factory 2304 | -7/Factory | Evolved 2 slots: Utility x2 2428 | -7/Factory | Discovered new exit (range 6) 2435 | -7/Factory | Entered Lower Caves 2436 | -7/Lower Caves | Encountered a Warlord checkpoint 2474 | -7/Lower Caves | Found Prototype Device 2474 | -7/Lower Caves | Identified Heart of Steel 2492 | -7/Lower Caves | Murdered Warlord Statue 2606 | -7/Lower Caves | Attracted the attention of an 0b10 checkpoint 3139 | -7/Lower Caves | Learned Factory non-interactive machine intel 3186 | -7/Lower Caves | Discovered new exit (range 5) 3211 | -7/Lower Caves | Entered another Lower Caves area 3308 | -7/Lower Caves | Discovered new exit (range 10) 3322 | -7/Lower Caves | Entered Factory 3322 | -6/Factory | Evolved 2 slots: Utility x2 3323 | -6/Factory | Loaded intel: 194 non-interactive machine locations 3335 | -6/Factory | Identified exit to Lower Caves 3649 | -6/Factory | Core integrity fell below 50% 3656 | -6/Factory | Core integrity fell below 20% 3679 | -6/Factory | Lost 5 parts (2n1u2w) 3692 | -6/Factory | Destroyed by S-27 Virus with Autogun Last Messages --------------- 03661_ A bubble of rippling energy engulfs the area. 03661_ Field strength at 94. 03662_ Field strength at 88. 03663_ Field strength at 82. 03665_ S-27 Virus destroyed. 03667_ Field strength at 68. 03668_ Field strength at 62. 03669_ Field strength at 56. 03670_ Field strength at 50. 03671_ Field strength at 44. 03672_ Field strength at 38. 03673_ Field strength at 32. 03674_ Field strength at 26. 03675_ Field strength at 16. 03676_ Field strength at 10. 03677_ Stasis field depleted. 03691_ Triggered Stasis Trap. 03691_ A bubble of rippling energy engulfs the area. 03691_ Field strength at 94. 03691_ Field strength at 88. Map ----- +----------------------------------------------------+ | ??????????????????????? ??????????# " " " " " # | | ??????????????????????##/########### " " " " " # | | ??????????????????????# [%% + " " " " " # | | ??????????????????????# #### " " " " " # | | ??????????????????????# #??# " " " " " !# | | ??????????????????????# #??# " " " " " ## | | ??????????????????????# ####??# " " " " " #? | | ??????????????????????# #?????# ? #? | | ??????????????????????# #?????##############? | | ??????????"""?"""?"""?+ ###########????????????? | | ??????????"""?"""?"""?# # ????????????? | | ??????????"""?"""?"""?# # """ """"????????????? | | ??????????????????????# # "R """"????????????? | | ???????????????#+##+### # """ """" ???????????? | | ???????????????# + """" #??????????? | | ????????????????## # #??????????? | | ?????????????????# # #??????????? | | ?????????????????# ##+##########??????????? | | ?????????????????# #???????????????????? | | ?????????????????# ####???????????????????? | | ?????????????????# ######??????????????????????? | | ?????????????????# T#??????????????????????????? | | ?????????????????# #????????##????????????????? | | ?????????????????# ##?????? #????????????????? | | ?????????????????# ###### #????????????????? | | ?????????????????# s @ Y +?"""????????????? | | ?????????????????# ### #?"""????????????? | | ??????????? #???? #?"""????????????? | | ????????" #??????##????????????????? | | ???????? ####????????????????????????? | | ???????? ##########????????????????????????????? | | ????????#????????????????????????????????????????? | | ?????????????????????????????????????????????????? | | | | | | | | | | | | | | | | | | | | | | | | | | | | | | | | | | | +----------------------------------------------------+ Best States ------------- Heat Dissipation 37 Energy Generation 10 Energy Capacity 375 Matter Stores 300 Matter Capacity 300 Sight Range 16 Terrain Scan Density 10 Melee Speed Boost 20 Evasion (%) 63 Targeting Accuracy 6 Melee Accuracy 8 Recoil Reduction 2 Defensive Hacking 10 Item Schematics ----------------- None Robot Schematics ------------------ None Fabricated ------------ Nothing Alien Tech Used ----------------- None Achievements -------------- None Challenges ------------ None Game ------ Seed SalvagingArmageddonTorch Manual? 0 Play Time 00:49:40 Cumulative 315.7 hours Start 2025.03.11 @ 17:32:11 End 2025.03.11 @ 18:36:30 Sessions 1 Manual Loads 0 Difficulty Rogue Special Mode None Game No. 172 Rogue 172 Adventurer 0 Explorer 0 Win Type - Total 4 Types 4/0/0/0/0/0/0/0/0 Lore% 57 Gallery% 69 Achievement% 60 Wizard Run 0 Options --------- Layout 0 ASCII 0 Keyboard 1 Movement Vi Keybinds 0 Fullscreen 2 Font 18/SmallcapsGlow Map View 76x50 Zoom Use 0% Tactical HUD 1 Map Filters NONE Filters NONE Steam 1 RUN: 15bf0123-6f9e-4b14-a644-48426523f1ed